fUST/lending_fUST_20241016
["ID","MTS","AMOUNT","RATE_DAILY","PERIOD"]
[340302659,1729009885301,-500.0,0.0003726,30]
[340302660,1729009885310,-500.0,0.0003726,30]
[340302661,1729009885320,-500.0,0.0003726,30]
[340302662,1729009885329,-379.90833233,0.0003726,30]
[340302663,1729009885338,-500.0,0.0003726,30]
[340302664,1729009885347,-500.0,0.0003726,30]
[340302665,1729009885357,-500.0,0.0003726,30]
[340302666,1729009885369,-500.0,0.0003726,30]
[340302667,1729009885379,-500.0,0.0003726,30]
[340302668,1729009885389,-500.0,0.0003726,30]
[340302669,1729009885399,-237.67691386,0.0003726,30]
[340302670,1729009885408,-727.25,0.0003726,30]
[340302671,1729009885418,-506.97411332,0.0003726,30]
[340302672,1729009885428,-834.78,0.0003726,30]
[340302673,1729009885438,-548.13,0.0003726,30]
[340302674,1729009885449,-500.0,0.0003726,30]
[340302675,1729009885458,-500.0,0.0003726,30]
[340302676,1729009885468,-500.0,0.0003726,30]
[340302677,1729009885478,-500.0,0.0003726,30]
[340302678,1729009885487,-500.0,0.0003726,30]
[340302679,1729009885497,-500.0,0.0003726,30]
[340302680,1729009885507,-500.0,0.0003726,30]
[340302681,1729009885516,-500.0,0.0003726,30]
[340302682,1729009885527,-500.0,0.0003726,30]
[340302683,1729009885536,-522.65001195,0.0003726,30]
[340302684,1729009885546,-500.0,0.0003726,30]
[340302685,1729009885556,-500.0,0.0003726,30]
[340302686,1729009885566,-500.0,0.0003726,30]
[340302687,1729009885576,-500.0,0.0003726,30]
[340302688,1729009885585,-500.0,0.0003726,30]
[340302689,1729009885595,-508.49833695,0.0003726,30]
[340302690,1729009885604,-500.0,0.0003726,30]
[340302691,1729009885616,-1164.43,0.0003726,30]
[340302692,1729009885626,-500.0,0.0003726,30]
[340302693,1729009885635,-500.0,0.0003726,30]
[340302694,1729009885646,-500.0,0.0003726,30]
[340302695,1729009885656,-500.0,0.0003726,30]
[340302696,1729009885666,-466.10422729,0.0003726,30]
[340302697,1729009885675,-500.0,0.0003726,30]
[340302698,1729009885684,-500.0,0.0003726,30]
[340302699,1729009885693,-500.0,0.0003726,30]
[340302700,1729009885809,-500.0,0.0003726,30]
[340302701,1729009885820,-500.0,0.0003726,30]
[340302702,1729009885830,-500.0,0.0003726,7]
[340302703,1729009885839,-506.19961774,0.0003726,30]
[340302704,1729009885849,-540.1414899,0.0003726,30]
[340302705,1729009885858,-500.0,0.0003726,30]
[340302706,1729009885869,-500.0,0.0003726,30]
[340302707,1729009885879,-500.0,0.0003726,30]
[340302708,1729009885888,-500.0,0.0003726,30]
[340302709,1729009885897,-621.1176389,0.0003726,30]
[340302710,1729009885908,-500.0,0.0003726,30]
[340302711,1729009885917,-500.0,0.0003726,30]
[340302712,1729009885927,-590.71359031,0.0003726,30]
[340302713,1729009885936,-500.0,0.0003726,30]
[340302714,1729009885946,-500.0,0.0003726,30]
[340302715,1729009885955,-500.0,0.0003726,30]
[340302716,1729009885964,-500.0,0.0003726,30]
[340302717,1729009885974,-500.0,0.0003726,30]
[340302718,1729009885985,-500.0,0.0003726,30]
[340302719,1729009885995,-632.25,0.0003726,30]
[340302720,1729009886005,-500.0,0.0003726,30]
[340302721,1729009886015,-500.0,0.0003726,30]
[340302722,1729009886024,-500.0,0.0003726,30]
[340302723,1729009886034,-500.0,0.0003726,30]
[340302724,1729009886044,-504.68969104,0.0003726,30]
[340302725,1729009886054,-534.90635529,0.0003726,30]
[340302726,1729009886064,-500.0,0.0003726,30]
[340302727,1729009886074,-500.0,0.0003726,30]
[340302728,1729009886084,-503.19265719,0.0003726,7]
[340302729,1729009886094,-500.0,0.0003726,30]
[340302730,1729009886103,-506.06004002,0.0003726,30]
[340302731,1729009886113,-500.0,0.0003726,30]
[340302732,1729009886126,-500.0,0.0003726,30]
[340302733,1729009886140,-500.0,0.0003726,30]
[340302734,1729009886150,-500.0,0.0003726,30]
[340302735,1729009886160,-500.0,0.0003726,30]
[340302736,1729009886170,-500.0,0.0003726,30]
[340302737,1729009886179,-500.0,0.0003726,30]
[340302738,1729009886189,-500.0,0.0003726,30]
[340302739,1729009886200,-161.5251214,0.0003726,30]
[340302740,1729009886210,-537.43895721,0.0003726,30]
[340302741,1729009886221,-500.0,0.0003726,30]
[340302742,1729009886230,-500.0,0.0003726,30]
[340302743,1729009886240,-500.0,0.0003726,30]
[340302744,1729009886250,-698.17,0.0003726,30]
[340302745,1729009886260,-500.0,0.0003726,30]
[340302746,1729009886270,-500.0,0.0003726,30]
[340302747,1729009886279,-500.0,0.0003726,30]
[340302748,1729009886289,-500.0,0.0003726,30]
[340302749,1729009886299,-500.0,0.0003726,30]
[340302750,1729009886308,-500.0,0.0003726,30]
[340302751,1729009886318,-500.0,0.0003726,30]
[340302752,1729009886328,-500.0,0.0003726,30]
[340302753,1729009886337,-500.0,0.0003726,30]
[340302754,1729009886347,-500.0,0.0003726,30]
[340302755,1729009886357,-502.01885256,0.0003726,2]
[340302756,1729009886367,-502.82191052,0.0003726,30]
[340302757,1729009886376,-500.0,0.0003726,30]
[340302758,1729009886386,-500.0,0.0003726,30]
[340302759,1729009886396,-500.0,0.0003726,30]
[340302760,1729009886406,-500.0,0.0003726,30]
[340302761,1729009886415,-506.61594842,0.0003726,30]
[340302762,1729009886425,-500.0,0.0003726,30]
[340302763,1729009886435,-455.87833822,0.0003726,30]
[340302764,1729009886445,-500.0,0.0003726,30]
[340302765,1729009886455,-500.0,0.0003726,30]
[340302766,1729009886465,-500.0,0.0003726,30]
[340302767,1729009886474,-500.0,0.0003726,30]
[340302768,1729009886484,-500.0,0.0003726,30]
[340302769,1729009886494,-500.0,0.0003726,30]
[340302770,1729009886504,-500.0,0.0003726,30]
[340302771,1729009886514,-500.0,0.0003726,30]
[340302772,1729009886524,-500.0,0.0003726,30]
[340302773,1729009886534,-500.0,0.0003726,30]
[340302774,1729009886544,-500.0,0.0003726,30]
[340302775,1729009886553,-500.0,0.0003726,30]
[340302776,1729009886563,-500.0,0.0003726,30]
[340302777,1729009886573,-500.0,0.0003726,30]
[340302778,1729009886583,-500.0,0.0003726,30]
[340302779,1729009886592,-506.45530585,0.0003726,30]
[340302780,1729009886602,-500.0,0.0003726,30]
[340302781,1729009886612,-500.0,0.0003726,30]
[340302782,1729009886623,-500.0,0.0003726,30]
[340302783,1729009886633,-500.0,0.0003726,30]
[340302784,1729009886643,-500.0,0.0003726,30]
[340302785,1729009886653,-633.73037071,0.0003726,30]
[340302786,1729009886663,-500.0,0.0003726,30]
[340302787,1729009886672,-500.0,0.0003726,30]
[340302788,1729009886682,-512.1,0.0003726,30]
[340302789,1729009886691,-500.0,0.0003726,30]
[340302790,1729009886701,-505.193195,0.0003726,30]
[340302791,1729009886710,-500.0,0.0003726,30]
[340302792,1729009886720,-547.56431932,0.0003726,30]
[340302793,1729009886730,-451.38312457,0.0003726,30]
[340302794,1729009886740,-500.0,0.0003726,30]
[340302795,1729009886750,-500.0,0.0003726,30]
[340302796,1729009886759,-500.0,0.0003726,30]
[340302797,1729009886769,-500.0,0.0003726,30]
[340302798,1729009886778,-500.0,0.0003726,30]
[340302799,1729009886789,-500.0,0.0003726,30]
[340302800,1729009886798,-500.0,0.0003726,30]
[340302801,1729009886807,-3244.71,0.0003726,30]
[340302802,1729009886817,-500.0,0.0003726,30]
[340302803,1729009886827,-500.0,0.0003726,30]
[340302804,1729009886836,-238.28741921,0.0003726,30]
[340302805,1729009886846,-816.57,0.0003726,30]
[340302806,1729009886856,-500.0,0.0003726,30]
[340302807,1729009886866,-500.0,0.0003726,30]
[340302808,1729009886876,-500.0,0.0003726,30]
[340302809,1729009886886,-500.98392581,0.0003726,30]
[340302810,1729009886895,-500.0,0.0003726,30]
[340302811,1729009886904,-500.0,0.0003726,30]
[340302812,1729009886914,-500.0,0.0003726,30]
[340302813,1729009886924,-500.0,0.0003726,30]
[340302814,1729009886933,-500.0,0.0003726,30]
[340302815,1729009886943,-500.0,0.0003726,30]
[340302816,1729009886952,-500.0,0.0003726,30]
[340302817,1729009886962,-513.62871787,0.0003726,30]
[340302818,1729009886971,-500.0,0.0003726,30]
[340302819,1729009886980,-502.98954364,0.0003726,30]
[340302820,1729009886991,-500.0,0.0003726,30]
[340302821,1729009887000,-465.58322435,0.0003726,30]
[340302822,1729009887010,-500.0,0.0003726,30]
[340302823,1729009887019,-533.79131615,0.0003726,30]
[340302824,1729009887028,-500.0,0.0003726,30]
[340302825,1729009887038,-1000.0,0.0003726,30]
[340302826,1729009887047,-500.0,0.0003726,30]
[340302827,1729009887057,-500.0,0.0003726,30]
[340302828,1729009887068,-500.0,0.0003726,30]
[340302829,1729009887078,-500.0,0.0003726,30]
[340302830,1729009887088,-505.28481872,0.0003726,30]
[340302831,1729009887098,-500.0,0.0003726,30]
[340302832,1729009887108,-500.0,0.0003726,30]
[340302833,1729009887119,-500.0,0.0003726,30]
[340302834,1729009887132,-500.0,0.0003726,30]
[340302835,1729009887141,-500.0,0.0003726,30]
[340302836,1729009887151,-500.0,0.0003726,30]
[340302837,1729009887162,-500.0,0.0003726,30]
[340302838,1729009887171,-500.0,0.0003726,30]
[340302839,1729009887181,-500.0,0.0003726,30]
[340302840,1729009887190,-520.79116055,0.0003726,30]
[340302841,1729009887200,-508.43088259,0.0003726,30]
[340302842,1729009887209,-500.0,0.0003726,30]
[340302843,1729009887218,-500.0,0.0003726,30]
[340302844,1729009887227,-500.0,0.0003726,30]
[340302845,1729009887236,-500.0,0.0003726,30]
[340302846,1729009887246,-500.0,0.0003726,30]
[340302847,1729009887255,-525.52220139,0.0003726,30]
[340302848,1729009887265,-500.0,0.0003726,30]
[340302849,1729009887274,-406.67276989,0.0003726,30]
[340302850,1729009887283,-948.78,0.0003726,30]
[340302851,1729009887293,-544.51,0.0003726,30]
[340302852,1729009887303,-501.84696479,0.0003726,30]
[340302853,1729009887313,-500.0,0.0003726,30]
[340302854,1729009887322,-500.0,0.0003726,30]
[340302855,1729009887331,-500.0,0.0003726,30]
[340302856,1729009887341,-500.0,0.0003726,30]
[340302857,1729009887351,-500.0,0.0003726,30]
[340302858,1729009887361,-500.0,0.0003726,30]
[340302859,1729009887374,-500.0,0.0003726,30]
[340302860,1729009887383,-519.59127368,0.0003726,30]
[340302861,1729009887393,-513.47110456,0.0003726,30]
[340302862,1729009887403,-500.0,0.0003726,30]
[340302863,1729009887412,-500.0,0.0003726,30]
[340302864,1729009887422,-500.0,0.0003726,30]
[340302865,1729009887433,-500.0,0.0003726,30]
[340302866,1729009887443,-500.0,0.0003726,30]
[340302867,1729009887452,-501.43,0.0003726,30]
[340302868,1729009887461,-551.11,0.0003726,30]
[340302869,1729009887471,-506.91225145,0.0003726,30]
[340302870,1729009887480,-498.79018802,0.0003726,30]
[340302871,1729009887489,-500.0,0.0003726,30]
[340302872,1729009887499,-500.0,0.0003726,30]
[340302873,1729009887508,-500.0,0.0003726,30]
[340302874,1729009887519,-500.0,0.0003726,30]
[340302875,1729009887530,-500.0,0.0003726,30]
[340302876,1729009887540,-500.0,0.0003726,30]
[340302877,1729009887550,-504.30202717,0.0003726,30]
[340302878,1729009887559,-500.0,0.0003726,30]
[340302879,1729009887569,-649.45515673,0.0003726,30]
[340302880,1729009887578,-500.97639229,0.0003726,30]
[340302881,1729009887588,-649.77,0.0003726,30]
[340302882,1729009887598,-500.0,0.0003726,30]
[340302883,1729009887607,-644.88298354,0.0003726,30]
[340302884,1729009887619,-500.0,0.0003726,30]
[340302885,1729009887628,-500.0,0.0003726,30]
[340302886,1729009887638,-206.47674479,0.0003726,30]
[340302887,1729009887647,-500.0,0.0003726,30]
[340302888,1729009887656,-799.26,0.0003726,30]
[340302889,1729009887665,-503.44359372,0.0003726,30]
[340302890,1729009887674,-500.0,0.0003726,30]
[340302891,1729009887683,-500.0,0.0003726,30]
[340302892,1729009887693,-454.02669946,0.0003726,30]
[340302893,1729009887703,-500.0,0.0003726,30]
[340302894,1729009887712,-500.0,0.0003726,30]
[340302895,1729009887722,-526.22,0.0003726,30]
[340302896,1729009887731,-500.0,0.0003726,30]
[340302897,1729009887742,-500.0,0.0003726,30]
[340302898,1729009887752,-500.0,0.0003726,30]
[340302899,1729009887761,-500.0,0.0003726,30]
[340302900,1729009887771,-683.6,0.0003726,30]
[340302901,1729009887780,-500.0,0.0003726,30]
[340302902,1729009887790,-500.0,0.0003726,30]
[340302903,1729009887799,-500.0,0.0003726,30]
[340302904,1729009887910,-500.0,0.0003726,30]
[340302905,1729009887920,-500.0,0.0003726,30]
[340302906,1729009887930,-500.0,0.0003726,30]
[340302907,1729009887939,-522.91147246,0.0003726,30]
[340302908,1729009887950,-503.95850631,0.0003726,30]
[340302909,1729009887959,-500.0,0.0003726,30]
[340302910,1729009887970,-502.94663582,0.0003726,30]
[340302911,1729009887980,-521.41,0.0003726,30]
[340302912,1729009887990,-500.0,0.0003726,30]
[340302913,1729009888001,-500.0,0.0003726,30]
[340302914,1729009888010,-325.33274746,0.0003726,30]
[340302915,1729009888020,-500.0,0.0003726,7]
[340302916,1729009888029,-500.0,0.0003726,30]
[340302917,1729009888038,-500.0,0.0003726,30]
[340302918,1729009888048,-500.0,0.0003726,30]
[340302919,1729009888058,-500.0,0.0003726,30]
[340302920,1729009888069,-500.0,0.0003726,30]
[340302921,1729009888079,-227.77260741,0.0003726,30]
[340302922,1729009888089,-500.0,0.0003726,30]
[340302923,1729009888100,-532.78875721,0.0003726,30]
[340302924,1729009888110,-990.07,0.0003726,30]
[340302925,1729009888123,-500.0,0.0003726,30]
[340302926,1729009888137,-500.0,0.0003726,30]
[340302927,1729009888146,-500.0,0.0003726,30]
[340302928,1729009888157,-658.7,0.0003726,30]
[340302929,1729009888168,-500.0,0.0003726,30]
[340302930,1729009888177,-3681.08,0.0003726,30]
[340302931,1729009888186,-500.0,0.0003726,30]
[340302932,1729009888196,-500.0,0.0003726,30]
[340302933,1729009888207,-500.0,0.0003726,30]
[340302934,1729009888216,-627.96028327,0.0003726,30]
[340302935,1729009888225,-500.0,0.0003726,30]
[340302936,1729009888236,-500.0,0.0003726,30]
[340302937,1729009888245,-500.0,0.0003726,30]
[340302938,1729009888255,-500.0,0.0003726,30]
[340302939,1729009888265,-500.0,0.0003726,30]
[340302940,1729009888274,-500.0,0.0003726,30]
[340302941,1729009888284,-1724.34,0.0003726,30]
[340302942,1729009888294,-500.0,0.0003726,30]
[340302943,1729009888304,-500.0,0.0003726,30]
[340302944,1729009888313,-500.0,0.0003726,30]
[340302945,1729009888323,-500.0,0.0003726,30]
[340302946,1729009888333,-500.0,0.0003726,30]
[340302947,1729009888343,-500.0,0.0003726,30]
[340302948,1729009888353,-341.82488462,0.0003726,30]
[340302949,1729009888362,-510.09540487,0.0003726,30]
[340302950,1729009888375,-500.0,0.0003726,30]
[340302951,1729009888385,-761.67,0.0003726,30]
[340302952,1729009888394,-500.0,0.0003726,30]
[340302953,1729009888404,-5876.9,0.0003726,30]
[340302954,1729009888413,-1121.68,0.0003726,30]
[340302955,1729009888423,-500.0,0.0003726,30]
[340302956,1729009888433,-500.0,0.0003726,30]
[340302957,1729009888443,-360.92494055,0.0003726,30]
[340302958,1729009888452,-500.0,0.0003726,30]
[340302959,1729009888463,-500.0,0.0003726,30]
[340302960,1729009888472,-500.0,0.0003726,30]
[340302961,1729009888482,-500.0,0.0003726,30]
[340302962,1729009888492,-584.13,0.0003726,30]
[340302963,1729009888502,-500.0,0.0003726,30]
[340302964,1729009888512,-343.92787996,0.0003726,30]
[340302965,1729009888522,-500.0,0.0003726,30]
[340302966,1729009888531,-358.67294802,0.0003726,30]
[340302967,1729009888541,-500.0,0.0003726,30]
[340302968,1729009888551,-771.59,0.0003726,30]
[340302969,1729009888561,-500.0,0.0003726,30]
[340302970,1729009888571,-528.26954153,0.0003726,30]
[340302971,1729009888581,-500.0,0.0003726,30]
[340302972,1729009888591,-500.0,0.0003726,30]
[340302973,1729009888601,-500.0,0.0003726,30]
[340302974,1729009888612,-500.0,0.0003726,30]
[340302975,1729009888624,-500.0,0.0003726,30]
[340302976,1729009888634,-1991.97,0.0003726,30]
[340302977,1729009888644,-500.0,0.0003726,30]
[340302978,1729009888654,-539.76,0.0003726,30]
[340302979,1729009888663,-500.0,0.0003726,30]
[340302980,1729009888673,-500.0,0.0003726,30]
[340302981,1729009888682,-548.21152553,0.0003726,30]
[340302982,1729009888691,-500.0,0.0003726,30]
[340302983,1729009888700,-633.15,0.0003726,30]
[340302984,1729009888711,-570.30871236,0.0003726,30]
[340302985,1729009888720,-754.14,0.0003726,30]
[340302986,1729009888730,-500.0,0.0003726,30]
[340302987,1729009888740,-500.0,0.0003726,30]
[340302988,1729009888749,-500.0,0.0003726,30]
[340302989,1729009888759,-663.08,0.0003726,30]
[340302990,1729009888769,-500.0,0.0003726,30]
[340302991,1729009888778,-500.0,0.0003726,30]
[340302992,1729009888787,-509.72704602,0.0003726,30]
[340302993,1729009888797,-500.0,0.0003726,30]
[340302994,1729009888807,-500.0,0.0003726,30]
[340302995,1729009888816,-500.0,0.0003726,30]
[340302996,1729009888826,-500.0,0.0003726,30]
[340302997,1729009888835,-157.66833548,0.0003726,30]
[340302998,1729009888845,-500.0,0.0003726,30]
[340302999,1729009888855,-525.32,0.0003726,30]
[340303000,1729009888868,-352.38821019,0.0003726,30]
[340303001,1729009888878,-500.0,0.0003726,30]
[340303002,1729009888887,-512.39267364,0.0003726,30]
[340303003,1729009888897,-500.0,0.0003726,30]
[340303004,1729009888907,-500.0,0.0003726,30]
[340303005,1729009888918,-535.90340217,0.0003726,30]
[340303006,1729009888928,-500.0,0.0003726,30]
[340303007,1729009888939,-500.0,0.0003726,30]
[340303008,1729009888948,-500.0,0.0003726,30]
[340303009,1729009888958,-500.0,0.0003726,30]
[340303010,1729009888969,-500.0,0.0003726,30]
[340303011,1729009888978,-500.0,0.0003726,30]
[340303012,1729009888988,-756.39,0.0003726,30]
[340303013,1729009888998,-1171.6,0.0003726,30]
[340303014,1729009889008,-554.41,0.0003726,30]
[340303015,1729009889018,-500.0,0.0003726,30]
[340303016,1729009889027,-500.0,0.0003726,30]
[340303017,1729009889038,-500.0,0.0003726,30]
[340303018,1729009889048,-500.0,0.0003726,30]
[340303019,1729009889058,-553.39,0.0003726,30]
[340303020,1729009889068,-947.4,0.0003726,30]
[340303021,1729009889077,-500.0,0.0003726,30]
[340303022,1729009889089,-500.0,0.0003726,30]
[340303023,1729009889099,-500.0,0.0003726,30]
[340303024,1729009889111,-500.0,0.0003726,30]
[340303025,1729009889121,-500.0,0.0003726,30]
[340303026,1729009889135,-500.0,0.0003726,30]
[340303027,1729009889147,-500.0,0.0003726,30]
[340303028,1729009889156,-500.0,0.0003726,30]
[340303029,1729009889166,-500.0,0.0003726,30]
[340303030,1729009889177,-500.0,0.0003726,30]
[340303031,1729009889187,-504.7199875,0.0003726,30]
[340303032,1729009889196,-500.0,0.0003726,30]
[340303033,1729009889207,-280.03669525,0.0003726,30]
[340303034,1729009889216,-513.31,0.0003726,30]
[340303035,1729009889225,-500.0,0.0003726,30]
[340303036,1729009889235,-500.0,0.0003726,30]
[340303037,1729009889244,-9763.37,0.0003726,30]
[340303038,1729009889254,-500.0,0.0003726,30]
[340303039,1729009889264,-500.0,0.0003726,30]
[340303040,1729009889274,-506.7872638,0.0003726,30]
[340303041,1729009889284,-500.0,0.0003726,30]
[340303042,1729009889294,-500.0,0.0003726,2]
[340303043,1729009889304,-500.0,0.0003726,30]
[340303044,1729009889313,-519.96173758,0.0003726,30]
[340303045,1729009889323,-500.0,0.0003726,30]
[340303046,1729009889332,-718.5,0.0003726,30]
[340303047,1729009889342,-606.02,0.0003726,30]
[340303048,1729009889351,-2000.0,0.0003726,30]
[340303049,1729009889360,-506.40878916,0.0003726,30]
[340303050,1729009889372,-500.0,0.0003726,30]
[340303051,1729009889381,-2997.52,0.0003726,21]
[340303052,1729009889391,-500.0,0.0003726,30]
[340303053,1729009889400,-500.0,0.0003726,30]
[340303054,1729009889410,-2500.0,0.00037278,5]
[340303055,1729009889419,-2500.0,0.00037278,5]
[340303056,1729009889429,-500.0,0.00037378,5]
[340303057,1729009889438,-178.391455,0.00037415,2]
[340303058,1729009889446,-343.117296,0.00037415,2]
[340303059,1729009889456,-1500.0,0.00037467,2]
[340303060,1729009889466,-1000.0,0.000375,2]
[340303061,1729009889475,-1000.0,0.000375,5]
[340303062,1729009889483,-527.0,0.0003751,2]
[340303063,1729009889493,-1806.0,0.0003751,2]
[340303064,1729009889503,-1158.0,0.0003751,2]
[340303065,1729009889513,-4129.1432784,0.00037525,2]
[340303066,1729009889522,-150.0,0.000376,28]
[340303067,1729009889532,-206.844331,0.00037637,2]
[340303068,1729009889542,-150.0,0.000377,2]
[340303069,1729009889551,-1500.0,0.00037733,2]
[340303070,1729009889561,-86992.82775554,0.00037734,2]
[340303071,1729009889570,-15000.0,0.000378,3]
[340303072,1729009889580,-556.78180472,0.00037808,2]
[340303073,1729009889589,-500.0,0.00037808,30]
[340303074,1729009889598,-640.4701537,0.00037808,30]
[340303075,1729009889607,-500.0,0.00037808,30]
[340303076,1729009889618,-1269.68,0.00037808,30]
[340303077,1729009889627,-559.55026463,0.00037808,30]
[340303078,1729009889636,-500.0,0.00037808,30]
[340303079,1729009889645,-553.0927087,0.00037808,30]
[340303080,1729009889654,-957.5,0.00037808,30]
[340303081,1729009889663,-946.36,0.00037808,30]
[340303082,1729009889673,-519.6,0.00037808,30]
[340303083,1729009889682,-535.55517128,0.00037808,30]
[340303084,1729009889692,-500.0,0.00037808,30]
[340303085,1729009889702,-561.79102183,0.00037808,30]
[340303086,1729009889712,-552.92107242,0.00037808,30]
[340303087,1729009889721,-500.0,0.00037808,30]
[340303088,1729009889730,-500.0,0.00037808,30]
[340303089,1729009889739,-500.0,0.00037808,30]
[340303090,1729009889749,-523.17174903,0.00037808,30]
[340303091,1729009889758,-500.0,0.00037808,30]
[340303092,1729009889861,-509.15435721,0.00037808,2]
[340303093,1729009889873,-500.0,0.00037808,30]
[340303094,1729009889882,-500.0,0.00037808,30]
[340303095,1729009889891,-500.0,0.00037808,30]
[340303096,1729009889901,-500.0,0.00037808,30]
[340303097,1729009889911,-500.0,0.00037808,30]
[340303098,1729009889921,-500.0,0.00037808,30]
[340303099,1729009889932,-1000.0,0.00037808,30]
[340303100,1729009889941,-500.0,0.00037808,30]
[340303101,1729009889951,-601.51329675,0.00037808,30]
[340303102,1729009889961,-500.0,0.00037808,30]
[340303103,1729009889970,-545.0,0.00037808,30]
[340303104,1729009889980,-500.0,0.00037808,30]
[340303105,1729009889990,-500.0,0.00037808,30]
[340303106,1729009890000,-540.96544627,0.00037808,30]
[340303107,1729009890009,-560.29033956,0.00037808,30]
[340303108,1729009890019,-500.0,0.00037808,30]
[340303109,1729009890029,-398.80973882,0.00037808,30]
[340303110,1729009890038,-500.0,0.00037808,30]
[340303111,1729009890047,-500.0,0.00037808,30]
[340303112,1729009890058,-500.0,0.00037808,30]
[340303113,1729009890068,-500.0,0.00037808,30]
[340303114,1729009890078,-500.0,0.00037808,30]
[340303115,1729009890087,-727.25,0.00037808,30]
[340303116,1729009890096,-834.78,0.00037808,30]
[340303117,1729009890106,-548.13,0.00037808,30]
[340303118,1729009890115,-500.0,0.00037808,30]
[340303119,1729009890129,-500.0,0.00037808,30]
[340303120,1729009890139,-500.0,0.00037808,30]
[340303121,1729009890148,-500.0,0.00037808,30]
[340303122,1729009890157,-538.27780242,0.00037808,30]
[340303123,1729009890167,-538.87887825,0.00037808,30]
[340303124,1729009890176,-500.0,0.00037808,30]
[340303125,1729009890186,-500.0,0.00037808,30]
[340303126,1729009890195,-500.0,0.00037808,30]
[340303127,1729009890205,-500.0,0.00037808,30]
[340303128,1729009890215,-500.0,0.00037808,30]
[340303129,1729009890224,-500.0,0.00037808,30]
[340303130,1729009890233,-500.0,0.00037808,30]
[340303131,1729009890242,-500.0,0.00037808,30]
[340303132,1729009890251,-1164.43,0.00037808,30]
[340303133,1729009890260,-500.0,0.00037808,30]
[340303134,1729009890270,-500.0,0.00037808,30]
[340303135,1729009890280,-505.2513389,0.00037808,30]
[340303136,1729009890290,-500.0,0.00037808,30]
[340303137,1729009890300,-500.0,0.00037808,30]
[340303138,1729009890309,-500.0,0.00037808,30]
[340303139,1729009890319,-500.0,0.00037808,30]
[340303140,1729009890328,-500.0,0.00037808,30]
[340303141,1729009890337,-500.0,0.00037808,30]
[340303142,1729009890346,-500.0,0.00037808,7]
[340303143,1729009890356,-500.0,0.00037808,30]
[340303144,1729009890368,-500.0,0.00037808,30]
[340303145,1729009890377,-500.0,0.00037808,30]
[340303146,1729009890386,-500.0,0.00037808,30]
[340303147,1729009890396,-500.0,0.00037808,30]
[340303148,1729009890406,-500.0,0.00037808,30]
[340303149,1729009890416,-161.32499687,0.00037808,30]
[340303150,1729009890425,-500.0,0.00037808,30]
[340303151,1729009890434,-500.0,0.00037808,30]
[340303152,1729009890443,-500.0,0.00037808,30]
[340303153,1729009890453,-500.0,0.00037808,30]
[340303154,1729009890463,-500.0,0.00037808,30]
[340303155,1729009890472,-632.25,0.00037808,30]
[340303156,1729009890481,-185.06480847,0.00037808,30]
[340303157,1729009890491,-500.0,0.00037808,30]
[340303158,1729009890500,-500.0,0.00037808,30]